bitfinex/quotes_SOLUSD_20220104
["timestamp","ask_amount","ask_price","bid_price","bid_amount"]
[1641276880346,3.00142196,167.83,167.72,103.13769368]
[1641276880546,3.00142196,167.83,167.72,113.25356746]
[1641276880948,1.2813,167.86,167.72,113.25356746]
[1641276881150,23.7819,167.86,167.72,113.25356746]
[1641276881349,23.7819,167.86,167.72,121.81356746]
[1641276881551,24.0419,167.86,167.72,121.81356746]
[1641276881750,24.0419,167.86,167.73,1.2455]
[1641276881949,2.14434128,167.85,167.74,8.56]
[1641276882355,2.14434128,167.85,167.76,29.00014683]
[1641276882552,2.14434128,167.85,167.76,29.26014683]
[1641276884774,2.14434128,167.85,167.76,30.68684051]
[1641276885274,2.14434128,167.85,167.76,29.26014683]
[1641276885672,2.14434128,167.85,167.76,29.00014683]
[1641276885874,2.40434128,167.85,167.76,29.00014683]
[1641276886676,2.14434128,167.85,167.76,29.00014683]
[1641276887073,2.14434128,167.85,167.76,29.26014683]
[1641276887275,2.40434128,167.85,167.76,29.26014683]
[1641276888072,2.40434128,167.85,167.76,0.26]
[1641276888474,2.40434128,167.85,167.75,25.2105]
[1641276889073,2.40434128,167.85,167.75,51.36290128]
[1641276889473,1.2536,167.84,167.75,51.36290128]
[1641276889874,1.5136,167.84,167.75,51.36290128]
[1641276892878,26.2346,167.84,167.75,51.36290128]
[1641276895582,25.9746,167.84,167.75,51.36290128]
[1641276895782,24.721,167.84,167.75,51.36290128]
[1641276898385,26.0034,167.84,167.75,51.36290128]
[1641276898984,24.721,167.84,167.75,51.36290128]
[1641276899586,26.0783,167.84,167.75,51.36290128]
[1641276900386,26.0783,167.84,167.75,26.41240128]
[1641276900585,26.3383,167.84,167.75,26.15240128]
[1641276902387,26.0783,167.84,167.75,26.15240128]
[1641276902588,1.3573,167.84,167.75,26.15240128]
[1641276902987,2.14434128,167.85,167.75,26.41240128]
[1641276904090,2.14434128,167.85,167.76,24.7758]
[1641276904489,2.14434128,167.85,167.76,25.0358]
[1641276914604,2.40434128,167.85,167.75,26.15240128]
[1641276915402,1.352,167.84,167.75,26.15240128]
[1641276915803,1.612,167.84,167.75,26.15240128]
[1641276916203,1.612,167.84,167.73,23.9825]
[1641276916407,7.237,167.84,167.73,22.737]
[1641276916807,15.797,167.84,167.73,22.737]
[1641276917005,15.797,167.84,167.72,77.3197]
[1641276917006,2.74140031,167.82,167.72,77.3197]
[1641276917206,2.74140031,167.82,167.71,0.02]
[1641276917431,26.3503,167.81,167.71,0.02]
[1641276917830,26.6103,167.81,167.71,0.02]
[1641276918027,27.1103,167.81,167.71,0.02]
[1641276918428,27.1103,167.81,167.7,23.2038]
[1641276921031,27.1103,167.81,167.7,23.4638]
[1641276921833,26.6103,167.81,167.7,23.4638]
[1641276922933,26.3503,167.81,167.7,33.57967378]
[1641276923836,1.3557,167.81,167.7,33.57967378]
[1641276924036,1.3557,167.81,167.7,35.00636746]
[1641276924241,8.56,167.84,167.7,35.00636746]
[1641276924441,1.2499,167.86,167.71,8.56]
[1641276924637,1.2499,167.86,167.72,23.8865]
[1641276924836,1.2499,167.86,167.72,32.4465]
[1641276925039,1.2499,167.86,167.72,32.7065]
[1641276925238,2.9675337,167.85,167.72,32.7065]
[1641276925839,24.3829,167.84,167.73,1.2583]
[1641276926039,24.3829,167.84,167.73,1.5183]
[1641276926449,25.6378,167.84,167.73,1.5183]
[1641276926638,24.3829,167.84,167.73,1.5183]
[1641276927040,24.3829,167.84,167.73,10.0783]
[1641276927440,2.9675337,167.85,167.73,11.50499368]
[1641276927642,2.9675337,167.85,167.75,23.32935979]
[1641276927839,2.9675337,167.85,167.76,23.3692]
[1641276928040,2.9675337,167.85,167.76,23.6292]
[1641276931941,2.9675337,167.85,167.76,32.1892]
[1641276932742,8.56,167.94,167.76,171.64085941]
[1641276932953,8.56,167.94,167.77,78.1953]
[1641276932954,1.293,167.93,167.77,78.1953]
[1641276933242,24.0967,167.96,167.78,18.67587378]
[1641276933443,24.0967,167.96,167.79,23.1944]
[1641276933642,2.93519275,167.95,167.8,8.56]
[1641276933842,2.93519275,167.95,167.82,31.54510179]
[1641276934042,2.93519275,167.95,167.82,40.36510179]
[1641276934443,2.93519275,167.95,167.83,22.7153]
[1641276934845,2.93519275,167.95,167.83,22.9753]
[1641276935244,2.93519275,167.95,167.83,96.9891]
[1641276937446,3.19519275,167.95,167.83,96.9891]
[1641276937845,3.69519275,167.95,167.83,74.2738]
[1641276938251,1.28,167.94,167.83,74.2738]
[1641276938548,1.54,167.94,167.83,74.2738]
[1641276939147,1.54,167.94,167.83,0.26]
[1641276939447,2.04,167.94,167.8,8.82]
[1641276940048,2.04,167.94,167.81,24.833]
[1641276940249,1.54,167.94,167.82,28.39222947]
[1641276940448,2.04,167.94,167.82,28.39222947]
[1641276940649,1.54,167.94,167.82,28.65222947]
[1641276941049,1.54,167.94,167.83,22.5268]
[1641276941450,1.54,167.94,167.83,22.7868]
[1641276941948,1.28,167.94,167.83,22.7868]
[1641276943252,1.54,167.94,167.83,22.7868]
[1641276944854,2.04,167.94,167.82,28.39222947]
[1641276945054,8.56,167.93,167.82,28.65222947]
[1641276945254,23.7418,167.92,167.82,28.65222947]
[1641276945455,24.0018,167.92,167.82,28.65222947]
[1641276946060,25.3145,167.92,167.82,28.65222947]
[1641276947559,25.3145,167.92,167.79,22.9849]
[1641276948562,25.3145,167.92,167.8,32.00526308]
[1641276948958,25.3145,167.92,167.8,32.26526308]
[1641276949561,25.3145,167.92,167.81,22.9845]
[1641276949959,1.5727,167.92,167.81,24.67119368]
[1641276954781,1.5727,167.92,167.81,24.41119368]
[1641276955983,1.5727,167.92,167.81,24.67119368]
[1641276956583,1.3127,167.92,167.81,24.67119368]
[1641276957586,1.3127,167.92,167.81,25.96229368]
[1641276957985,1.5727,167.92,167.81,25.96229368]
[1641276968304,1.5727,167.92,167.81,24.41119368]
[1641276968902,1.5727,167.92,167.81,25.70719368]
[1641276969505,1.5727,167.92,167.81,25.96719368]
[1641276969705,1.5727,167.92,167.81,24.67119368]
[1641276972334,1.3127,167.92,167.81,24.67119368]
[1641276973334,1.8127,167.92,167.81,26.02179368]
[1641276973533,2.0727,167.92,167.81,26.02179368]
[1641276974735,10.6327,167.92,167.81,26.02179368]
[1641276974935,10.6327,167.92,167.81,24.5951]
[1641276975133,10.6327,167.92,167.81,22.9845]
[1641276976735,10.6327,167.92,167.76,42.14977378]
[1641276976938,15.9437,167.92,167.76,33.58977378]
[1641276977136,15.9437,167.92,167.76,23.4739]
[1641276977335,17.37039368,167.92,167.76,23.4739]
[1641276977535,17.37039368,167.92,167.74,23.3757]
[1641276977837,40.42699368,167.92,167.74,23.3757]
[1641276978037,40.42699368,167.92,167.74,23.6357]
[1641276978740,2.35708818,167.89,167.74,23.6357]
[1641276978938,8.56,167.88,167.74,23.6357]
[1641276979337,9.32,167.88,167.74,23.6357]
[1641276979541,25.416,167.87,167.74,23.6357]
[1641276979740,8.56,167.86,167.74,23.6357]
[1641276979939,24.2136,167.85,167.74,23.6357]
[1641276980338,24.9736,167.85,167.74,23.6357]
[1641276980539,2.98869277,167.83,167.74,23.6357]
[1641276980938,3.24869277,167.83,167.74,23.6357]
[1641276981842,3.74869277,167.83,167.74,23.6357]
[1641276983241,3.74869277,167.83,167.74,0.26]
[1641276983442,3.74869277,167.83,167.72,87.07087378]
[1641276984044,1.2663,167.82,167.72,87.07087378]
[1641276984444,1.5263,167.82,167.72,87.07087378]
[1641276988146,1.2663,167.82,167.72,87.07087378]
[1641276988749,1.2663,167.82,167.73,22.9803]
[1641276989050,1.2663,167.82,167.73,23.2403]
[1641276990248,9.8583,167.88,167.73,34.78286746]
[1641276990448,2.658,167.88,167.74,8.56]
[1641276990847,2.658,167.88,167.75,11.54256746]
[1641276991048,2.84258978,167.87,167.77,31.92733216]
[1641276991248,2.84258978,167.87,167.78,23.5207]
[1641276991450,2.84258978,167.87,167.78,23.7807]
[1641276991650,2.84258978,167.87,167.78,23.5207]
[1641276992256,3.10258978,167.87,167.78,23.5207]
[1641276992454,1.3585,167.86,167.78,23.5207]
[1641276992850,1.6185,167.86,167.75,1.2709]
[1641276993053,1.6185,167.86,167.75,25.8713]
[1641276993253,1.6185,167.86,167.75,24.6004]
[1641276993653,1.6185,167.86,167.75,56.34868483]
[1641276993854,1.6185,167.86,167.75,31.74828483]
[1641276994457,1.6185,167.86,167.75,32.00828483]
[1641276994957,1.6185,167.86,167.76,24.3398]
[1641276995455,1.6185,167.86,167.76,24.5998]
[1641276996056,1.3585,167.86,167.76,24.5998]
[1641276999362,1.6185,167.86,167.76,24.5998]
[1641277003063,1.6185,167.86,167.76,24.3398]
[1641277003363,1.6185,167.86,167.71,18.67587378]
[1641277003599,2.1185,167.86,167.73,23.011]
[1641277004365,2.1185,167.86,167.74,28.45404557]
[1641277004765,25.9471,167.86,167.74,28.45404557]
[1641277005966,25.9471,167.86,167.75,23.1391]
[1641277006367,25.9471,167.86,167.75,23.3991]
[1641277006569,25.4471,167.86,167.75,23.3991]
[1641277006766,25.9471,167.86,167.75,23.3991]
[1641277007166,25.9471,167.86,167.75,24.6503]
[1641277007366,34.5071,167.86,167.75,24.6503]
[1641277009170,34.5071,167.86,167.75,24.3903]
[1641277009472,34.5071,167.86,167.75,23.1391]
[1641277016505,34.5071,167.86,167.75,23.3991]
[1641277016705,34.5071,167.86,167.75,23.1391]
[1641277018907,34.5071,167.86,167.75,23.3991]
[1641277019510,34.5071,167.86,167.75,23.1391]
[1641277020913,34.0071,167.86,167.75,23.1391]
[1641277021112,34.0071,167.86,167.75,23.3991]
[1641277025015,34.0071,167.86,167.75,23.1391]
[1641277026513,34.0071,167.86,167.75,23.3991]
[1641277027918,34.5071,167.86,167.75,23.3991]
[1641277029318,34.0071,167.86,167.75,23.3991]
[1641277029818,33.7471,167.86,167.75,23.3991]
[1641277031023,34.0071,167.86,167.75,23.3991]
[1641277032522,2.84258978,167.87,167.75,23.3991]
[1641277032723,2.84258978,167.87,167.76,8.56]
[1641277033222,2.84258978,167.87,167.76,8.82]
[1641277033422,2.84258978,167.87,167.77,23.5866]
[1641277033923,2.84258978,167.87,167.77,23.8466]
[1641277034122,3.10258978,167.87,167.77,23.8466]
[1641277035322,1.3137,167.86,167.77,23.8466]
[1641277035523,1.5737,167.86,167.77,23.8466]
[1641277037125,1.5737,167.86,167.77,23.5866]
[1641277037126,8.2887,167.86,167.77,23.5866]
[1641277037324,8.7887,167.86,167.77,23.5866]
[1641277039728,17.3487,167.86,167.77,23.5866]
[1641277040229,17.3487,167.86,167.72,76.715]
[1641277040429,23.4838,167.85,167.73,24.5742]
[1641277040629,8.56,167.84,167.73,24.5742]
[1641277040830,9.06,167.84,167.73,24.5742]
[1641277041030,24.9588,167.83,167.73,24.5742]
[1641277041235,8.56,167.82,167.73,24.5742]
[1641277041431,3.98621253,167.81,167.73,24.5742]
[1641277041830,4.24621253,167.81,167.73,24.5742]
[1641277042030,28.57871253,167.81,167.73,24.5742]
[1641277043433,29.07871253,167.81,167.73,24.5742]
[1641277044235,3.98621253,167.81,167.73,24.8342]
[1641277045066,4.24621253,167.81,167.73,24.8342]
[1641277045865,4.24621253,167.81,167.73,24.5742]
[1641277046064,4.24621253,167.81,167.73,24.8342]
[1641277047467,4.24621253,167.81,167.73,24.5742]
[1641277048770,4.24621253,167.81,167.73,24.8342]
[1641277049177,4.24621253,167.81,167.73,24.5742]
[1641277052975,4.24621253,167.81,167.72,76.695]
[1641277053175,8.56,167.8,167.69,0.02]
[1641277053375,9.06,167.8,167.69,0.02]
[1641277053574,24.2859,167.79,167.69,0.02]
[1641277053774,9.9174,167.78,167.69,0.02]
[1641277053974,10.6774,167.78,167.69,0.02]
[1641277054381,10.6774,167.78,167.63,75.4397]
[1641277054777,10.6774,167.78,167.63,74.1209]
[1641277054978,24.9927,167.77,167.65,0.02]
[1641277055176,8.56,167.76,167.65,0.02]
[1641277055385,26.71308441,167.75,167.65,0.02]
[1641277055583,35.53308441,167.75,167.65,0.02]
[1641277055779,36.03308441,167.75,167.65,0.02]
[1641277055987,1.2522,167.74,167.65,0.02]
[1641277056181,1.2522,167.74,167.64,24.561]
[1641277056379,2.0122,167.74,167.64,24.821]
[1641277056581,2.0122,167.74,167.64,24.561]
[1641277057980,2.0122,167.74,167.64,24.821]
[1641277058380,2.0122,167.74,167.64,0.26]
[1641277058582,8.56,167.73,167.63,74.1209]
[1641277058785,8.56,167.73,167.62,3.1681663]
[1641277058983,9.32,167.73,167.62,3.1681663]
[1641277059385,26.1372,167.72,167.62,3.1681663]
[1641277059587,8.56,167.71,167.62,3.1681663]
[1641277060085,9.32,167.71,167.62,3.1681663]
[1641277060887,9.32,167.71,167.58,0.02]
[1641277061086,25.5296,167.7,167.58,0.02]
[1641277061285,11.16227745,167.69,167.58,0.02]
[1641277061488,11.42227745,167.69,167.58,0.02]
[1641277061687,24.6769,167.68,167.58,0.02]
[1641277061885,8.56,167.67,167.58,0.02]
[1641277062088,8.82,167.67,167.58,0.02]
[1641277062287,1.2887,167.66,167.54,23.6703]
[1641277062488,10.1087,167.66,167.54,23.6703]
[1641277062689,10.1087,167.66,167.55,1.42669368]
[1641277063090,10.1087,167.66,167.55,1.68669368]
[1641277064093,23.8472,167.65,167.55,1.68669368]
[1641277064493,24.1072,167.65,167.55,1.68669368]
[1641277065295,1.3654,167.64,167.55,1.68669368]
[1641277065498,1.6254,167.64,167.55,1.68669368]
[1641277066697,2.88545669,167.63,167.54,24.7698]
[1641277067095,3.14545669,167.63,167.54,24.7698]
[1641277069199,2.88545669,167.63,167.54,24.7698]
[1641277069597,2.88545669,167.63,167.54,25.0298]
[1641277070400,2.88545669,167.63,167.54,24.7698]
[1641277071417,3.14545669,167.63,167.54,24.7698]
[1641277071619,3.14545669,167.63,167.54,25.0298]
[1641277072819,0.26,167.63,167.54,25.0298]
[1641277073019,8.82,167.66,167.54,26.45649368]
[1641277074020,2.44625554,167.65,167.54,25.0298]
[1641277074221,3.73745554,167.65,167.54,25.0298]
[1641277074420,3.99745554,167.65,167.54,25.0298]
[1641277075128,3.99745554,167.65,167.54,23.6703]
[1641277075320,8.56,167.64,167.47,1.42669368]
[1641277075523,33.0583,167.64,167.48,0.02]
[1641277075723,1.42669368,167.63,167.48,0.02]
[1641277075920,8.56,167.62,167.48,0.02]
[1641277076321,9.32,167.62,167.45,24.62936746]
[1641277076521,24.3009,167.61,167.45,24.62936746]
[1641277076721,2.75299743,167.59,167.45,24.62936746]
[1641277076922,1.3459,167.58,167.46,24.541]
[1641277077320,2.1059,167.58,167.46,24.541]
[1641277077922,0.97427844,167.58,167.46,24.541]
[1641277078121,0.26,167.58,167.46,24.541]
[1641277078323,3.01299743,167.59,167.46,24.541]
[1641277078523,2.75299743,167.59,167.46,24.801]
[1641277079323,2.75299743,167.59,167.47,1.3647]
[1641277079523,2.75299743,167.59,167.47,1.6247]
[1641277079723,3.01299743,167.59,167.47,1.6247]
[1641277082227,3.01299743,167.59,167.45,93.7]
[1641277082426,9.91,167.58,167.45,93.7]
[1641277082627,24.3905,167.57,167.44,79.3788]
[1641277082830,33.4505,167.57,167.44,79.3788]
[1641277083028,33.7105,167.57,167.44,79.3788]
[1641277083427,1.3312,167.56,167.44,79.3788]
[1641277083627,9.8912,167.56,167.45,93.7]
[1641277083827,10.1512,167.56,167.45,93.7]
[1641277084029,10.1512,167.56,167.45,93.96]
[1641277084827,10.1512,167.56,167.46,22.6782]
[1641277085028,1.3312,167.56,167.46,22.9382]
[1641277085228,1.5912,167.56,167.46,22.9382]
[1641277087130,1.5912,167.56,167.46,22.6782]
[1641277087730,1.5912,167.56,167.46,22.9382]
[1641277088130,1.5912,167.56,167.46,22.6782]
[1641277088330,1.5912,167.56,167.46,22.9382]
[1641277089734,1.3312,167.56,167.46,22.9382]
[1641277090538,1.5912,167.56,167.46,22.9382]
[1641277091939,1.5912,167.56,167.46,21.9191698]
[1641277092839,0.86752247,167.56,167.46,21.9191698]
[1641277093042,0.60752247,167.56,167.46,21.9191698]
[1641277093242,24.6505,167.57,167.46,21.9191698]
[1641277093940,1.2461,167.56,167.46,21.9191698]
[1641277094343,1.5061,167.56,167.46,21.9191698]
[1641277094542,1.2461,167.56,167.46,21.6591698]
[1641277095344,24.3905,167.57,167.46,21.6591698]
[1641277095745,24.3905,167.57,167.47,1.2613]
[1641277095945,24.3905,167.57,167.47,1.5213]
[1641277097049,24.6505,167.57,167.47,1.2613]
[1641277097249,24.6505,167.57,167.47,1.5213]
[1641277097673,1.2703,167.56,167.47,1.5213]
[1641277097875,1.5303,167.56,167.47,1.2613]
[1641277098078,1.5303,167.56,167.47,1.5213]
[1641277098273,1.5303,167.56,167.47,1.2613]
[1641277098776,1.2703,167.56,167.47,1.2613]
[1641277098973,1.5303,167.56,167.46,21.6591698]
[1641277099574,1.5303,167.56,167.46,21.9191698]
[1641277099975,24.3905,167.57,167.46,21.9191698]
[1641277100175,24.6505,167.57,167.46,21.9191698]
[1641277100775,24.3905,167.57,167.46,21.9191698]
[1641277100976,1.3158,167.58,167.46,21.9191698]
[1641277101178,2.75299743,167.59,167.47,9.8917]
[1641277101376,2.75299743,167.59,167.48,23.1136]
[1641277101576,2.75299743,167.59,167.48,31.9336]
[1641277102178,2.75299743,167.59,167.5,26.49537636]
[1641277102577,2.75299743,167.59,167.5,26.75537636]
[1641277104184,1.3275,167.63,167.5,26.75537636]
[1641277104383,1.3275,167.63,167.51,8.56]
[1641277104586,0.26,167.63,167.51,10.084]
[1641277104985,10.6458,167.67,167.51,10.084]
[1641277105187,3.02251601,167.66,167.52,74.1866]
[1641277105585,3.28251601,167.66,167.52,74.4466]
[1641277105985,3.28251601,167.66,167.52,74.1866]
[1641277106199,8.56,167.65,167.5,26.49537636]
[1641277106385,31.8937,167.65,167.5,26.49537636]
[1641277106585,32.1537,167.65,167.5,26.49537636]
[1641277106988,1.3606,167.64,167.5,26.49537636]
[1641277107485,2.1206,167.64,167.5,26.75537636]
[1641277107785,2.1206,167.64,167.51,77.1066]
[1641277107985,2.1206,167.64,167.51,77.3666]
[1641277109285,1.8606,167.64,167.51,77.3666]
[1641277110286,1.8606,167.64,167.51,78.7094]
[1641277110685,2.1206,167.64,167.51,78.7094]
[1641277111487,2.1206,167.64,167.51,78.4494]
[1641277112692,2.1206,167.64,167.51,78.7094]
[1641277112889,1.8606,167.64,167.51,78.7094]
[1641277114092,2.1206,167.64,167.51,78.7094]
[1641277115795,1.6206,167.64,167.51,78.7094]
[1641277119303,2.1206,167.64,167.51,78.7094]
[1641277120005,1.6206,167.64,167.51,78.7094]
[1641277120702,1.6206,167.64,167.52,23.7192]
[1641277120905,1.3606,167.64,167.52,23.9792]
[1641277122104,1.3606,167.64,167.53,1.3694]
[1641277122509,1.3606,167.64,167.53,1.6294]
[1641277123306,22.8337,167.65,167.54,8.56]
[1641277123507,1.2564,167.68,167.55,22.715]
[1641277123728,1.2564,167.68,167.57,31.4216669]
[1641277123929,1.7564,167.68,167.57,54.6319669]
[1641277124129,1.7564,167.68,167.57,54.8919669]
[1641277124529,2.74962927,167.67,167.57,54.8919669]
[1641277124928,3.24962927,167.67,167.57,54.8919669]
[1641277126334,3.50962927,167.67,167.57,54.8919669]
[1641277127836,0.76,167.67,167.57,54.8919669]
[1641277128037,2.0164,167.68,167.57,54.8919669]
[1641277128237,23.0901,167.7,167.57,54.8919669]
[1641277128439,1.273,167.69,167.57,54.8919669]
[1641277128839,3.01917919,167.68,167.57,54.8919669]
[1641277129640,3.27917919,167.68,167.57,54.8919669]
[1641277130841,1.3068,167.67,167.57,54.8919669]
[1641277131043,1.5668,167.67,167.57,54.8919669]
[1641277134443,3.01917919,167.68,167.57,54.8919669]
[1641277136752,1.3247,167.71,167.57,54.8919669]
[1641277136947,1.3247,167.71,167.58,80.9478]
[1641277137347,1.5847,167.71,167.58,81.2078]
[1641277137548,1.3247,167.71,167.59,25.6562]
[1641277137846,1.3247,167.71,167.6,8.56]
[1641277138047,1.3247,167.71,167.61,23.8895]
[1641277138547,1.3247,167.71,167.61,24.1495]
[1641277138749,93.5154,167.76,167.61,24.1495]
[1641277138949,3.59812534,167.74,167.61,24.1495]
[1641277139351,3.85812534,167.74,167.61,24.1495]
[1641277139548,3.85812534,167.74,167.61,25.4347]
[1641277140748,24.8181,167.73,167.61,25.4347]
[1641277140949,25.0781,167.73,167.61,25.4347]
[1641277141952,1.3022,167.72,167.61,25.4347]
[1641277142372,1.5622,167.72,167.61,25.4347]
[1641277142751,1.5622,167.72,167.61,25.1747]
[1641277142952,2.0622,167.72,167.61,23.8895]
[1641277143153,1.5622,167.72,167.61,23.8895]
[1641277143351,2.0622,167.72,167.61,23.8895]
[1641277146756,2.0622,167.72,167.58,83.6077]
[1641277147060,24.9743,167.71,167.58,8.56]
[1641277147457,25.7343,167.71,167.58,8.56]
[1641277147758,8.56,167.7,167.56,50.78466699]
[1641277148056,10.6205,167.7,167.56,50.78466699]
[1641277148257,10.1205,167.7,167.56,50.78466699]
[1641277148457,10.1205,167.7,167.56,51.04466699]
[1641277148663,10.1205,167.7,167.57,1.3359]
[1641277149157,10.1205,167.7,167.57,1.5959]
[1641277149757,10.1205,167.7,167.57,79.8551]
[1641277150181,10.1205,167.7,167.58,24.9709]
[1641277150581,10.1205,167.7,167.58,25.2309]
[1641277151682,10.1205,167.7,167.58,24.9709]
[1641277151683,10.6205,167.7,167.58,24.9709]
[1641277152085,10.6205,167.7,167.57,78.2592]
[1641277153983,10.6205,167.7,167.57,78.5192]
[1641277154183,10.6205,167.7,167.57,78.2592]
[1641277154586,10.6205,167.7,167.57,78.5192]
[1641277160988,10.6205,167.7,167.57,78.2592]
[1641277162587,10.3605,167.7,167.57,78.2592]
[1641277162790,10.3605,167.7,167.57,78.5192]
[1641277163393,10.3605,167.7,167.58,24.1004]
[1641277163692,10.3605,167.7,167.58,25.6221]
[1641277163890,10.6205,167.7,167.58,25.6221]
[1641277167496,10.1205,167.7,167.58,25.6221]
[1641277174104,8.82,167.7,167.58,25.6221]
[1641277179611,0.26,167.7,167.58,34.1821]
[1641277180012,26.0365,167.73,167.58,34.1821]
[1641277180417,25.7765,167.73,167.58,40.7981]
[1641277180612,14.7667547,167.74,167.58,40.7981]
[1641277181212,14.7667547,167.74,167.58,59.03280256]
[1641277181415,14.7667547,167.74,167.58,60.45949624]
[1641277181813,15.0267547,167.74,167.58,60.45949624]
[1641277183415,15.0267547,167.74,167.58,59.03280256]
[1641277184236,14.7667547,167.74,167.58,59.03280256]
[1641277185641,14.7667547,167.74,167.58,60.45949624]
[1641277190546,15.0267547,167.74,167.58,49.63038614]
[1641277190749,15.0267547,167.74,167.58,40.7981]
[1641277190946,22.6676,167.73,167.58,34.1821]
[1641277191546,23.95,167.73,167.58,34.1821]
[1641277194350,23.95,167.73,167.58,33.9221]
[1641277194550,24.71,167.73,167.58,33.9221]
[1641277195652,33.27,167.73,167.58,33.9221]
[1641277196053,33.27,167.73,167.58,34.1821]
[1641277199756,12.43475508,167.72,167.58,34.1821]
[1641277199954,12.93475508,167.72,167.58,34.1821]
[1641277200154,13.19475508,167.72,167.58,34.1821]
[1641277200355,23.9911,167.71,167.58,34.1821]
[1641277200556,24.2511,167.71,167.58,34.1821]
[1641277200760,1.3177,167.7,167.58,34.1821]
[1641277200957,1.5777,167.7,167.58,34.1821]
[1641277202257,1.5777,167.7,167.58,33.9221]
[1641277203359,2.0777,167.7,167.58,33.9221]
[1641277203560,2.0777,167.7,167.58,34.1821]
[1641277205363,2.0777,167.7,167.55,24.1834]
[1641277205562,2.0777,167.7,167.54,39.71657753]
[1641277205962,2.0777,167.7,167.54,8.56]
[1641277207163,11.0307,167.7,167.54,35.34122232]
[1641277207365,11.0307,167.7,167.55,23.782]
[1641277208064,11.0307,167.7,167.54,35.34122232]
[1641277208264,2.0777,167.7,167.54,35.34122232]
[1641277208970,2.0777,167.7,167.54,35.60122232]
[1641277209767,8.9535,167.69,167.54,35.60122232]
[1641277209987,2.32766791,167.68,167.54,35.60122232]
[1641277210188,23.8935,167.67,167.55,23.6845]
[1641277210390,24.3935,167.67,167.55,23.6845]
[1641277210587,24.6535,167.67,167.54,8.56]
[1641277210789,1.3075,167.66,167.54,8.56]
[1641277211089,1.5675,167.66,167.54,8.56]
[1641277211288,2.0675,167.66,167.54,8.56]
[1641277211492,2.0675,167.66,167.54,8.82]
[1641277212295,2.0675,167.66,167.54,0.26]
[1641277212494,2.0675,167.66,167.52,24.2748]
[1641277220198,11.0116,167.66,167.52,24.2748]
[1641277220599,22.8148,167.65,167.52,24.2748]
[1641277220999,23.5748,167.65,167.52,24.2748]
[1641277221603,1.3419,167.64,167.52,24.2748]
[1641277222003,2.1019,167.64,167.52,24.2748]
[1641277225003,2.1019,167.64,167.52,33.1925]
[1641277227414,1.8419,167.64,167.52,33.1925]
[1641277227609,1.3419,167.64,167.53,8.56]
[1641277227808,1.3419,167.64,167.54,22.8739]
[1641277228008,1.3419,167.64,167.54,23.1339]
[1641277228207,22.8148,167.65,167.54,23.1339]
[1641277228644,22.8148,167.65,167.55,1.347]
[1641277229010,22.8148,167.65,167.55,1.607]
[1641277229913,22.8148,167.65,167.55,10.167]
[1641277231619,1.3593,167.66,167.55,10.167]
[1641277232216,1.3593,167.66,167.56,23.3855]
[1641277232618,1.3593,167.66,167.56,23.6455]
[1641277233218,24.6296,167.7,167.56,23.6455]
[1641277233422,24.6296,167.7,167.57,81.9833]
[1641277233621,1.2873,167.72,167.58,31.71261025]
[1641277233918,1.2873,167.72,167.59,31.7822]
[1641277234321,2.68421204,167.71,167.59,32.0422]
[1641277235121,2.68421204,167.71,167.6,1.3043]
[1641277235320,2.68421204,167.71,167.61,8.56]
[1641277235520,2.68421204,167.71,167.61,8.82]
[1641277238352,2.94421204,167.71,167.61,8.82]
[1641277241655,1.2602,167.7,167.61,8.82]
[1641277242055,1.5202,167.7,167.61,8.82]
[1641277244559,1.5202,167.7,167.59,23.2222]
[1641277244959,2.0202,167.7,167.59,23.4822]
[1641277245358,25.0893,167.7,167.59,23.4822]
[1641277245859,25.0893,167.7,167.57,126.29393861]